[Event "*** Titled Tuesday Blitz"]
[Site "Chess.com"]
[Date "2020.11.24"]
[Round "10"]
[White "TheKingDoctor"]
[Black "kakorrhaphiophobie"]
[Result "0-1"]
[WhiteElo "2080"]
[BlackElo "2286"]
[TimeControl "180+1"]
[EndTime "12:14:54 PST"]
[Termination "kakorrhaphiophobie won on time"]

1. d4 {[%clk 0:03:00.9]} 1... f5 {[%clk 0:02:59.7]} 2. Bf4 {[%clk 0:02:59.5]}
2... d6 {[%clk 0:02:56.6]} 3. Nf3 {[%clk 0:02:54.1]} 3... g6 {[%clk 0:02:56]} 4.
e3 {[%clk 0:02:53.5]} 4... Bg7 {[%clk 0:02:56.1]} 5. c3 {[%clk 0:02:48.6]} 5...
h6 {[%clk 0:02:55.1]} 6. h4 {[%clk 0:02:48.1]} 6... e6 {[%clk 0:02:55.1]} 7. Bc4
{[%clk 0:02:41.7]} 7... Qe7 {[%clk 0:02:54]} 8. Nbd2 {[%clk 0:02:31.8]} 8... Nf6
{[%clk 0:02:52.9]} 9. Qb3 {[%clk 0:02:28.3]} 9... Nc6 {[%clk 0:02:44.9]} 10. Bb5
{[%clk 0:00:21.1]} 10... Bd7 {[%clk 0:02:37.9]} 11. O-O-O {[%clk 0:00:19.5]}
11... O-O-O {[%clk 0:02:33.2]} 12. Qa4 {[%clk 0:00:18.4]} 12... Kb8 {[%clk
0:02:25.4]} 13. Nc4 {[%clk 0:00:16.5]} 13... a6 {[%clk 0:02:14.2]} 14. Bxa6
{[%clk 0:00:16.6]} 14... bxa6 {[%clk 0:02:15.1]} 15. Qxa6 {[%clk 0:00:17.3]}
15... Na7 {[%clk 0:02:13.2]} 16. Nxd6 {[%clk 0:00:15.3]} 16... Bc6 {[%clk
0:02:05.4]} 17. Nc4 {[%clk 0:00:07.3]} 17... Bb7 {[%clk 0:01:57.7]} 18. Qa5
{[%clk 0:00:07.1]} 18... Nd5 {[%clk 0:01:55.1]} 19. Bh2 {[%clk 0:00:05.6]} 19...
Qd7 {[%clk 0:01:30.4]} 20. Nfe5 {[%clk 0:00:04.4]} 20... Qb5 {[%clk 0:01:29.8]}
21. Qxb5 {[%clk 0:00:04.3]} 21... Nxb5 {[%clk 0:01:30.7]} 22. Nf7 {[%clk
0:00:04.2]} 22... Rhf8 {[%clk 0:01:29.4]} 23. Nxd8 {[%clk 0:00:04.2]} 23... Rxd8
{[%clk 0:01:30.3]} 24. Ne5 {[%clk 0:00:04.6]} 24... Bxe5 {[%clk 0:01:28.1]} 25.
Bxe5 {[%clk 0:00:05.5]} 25... Nd6 {[%clk 0:01:26.4]} 26. g3 {[%clk 0:00:04.4]}
26... Nb6 {[%clk 0:01:15.8]} 27. Rhg1 {[%clk 0:00:04.2]} 27... Bf3 {[%clk
0:01:15.6]} 28. Rde1 {[%clk 0:00:03.9]} 28... Nbc4 {[%clk 0:01:13.9]} 29. Bxd6
{[%clk 0:00:03.1]} 29... cxd6 {[%clk 0:01:14]} 30. Kc2 {[%clk 0:00:03.6]} 30...
Kc7 {[%clk 0:01:13.3]} 31. b3 {[%clk 0:00:03.7]} 31... Nb6 {[%clk 0:01:12.5]}
32. c4 {[%clk 0:00:04.2]} 32... e5 {[%clk 0:01:09]} 33. Kc3 {[%clk 0:00:04.2]}
33... Ra8 {[%clk 0:01:06.2]} 34. a4 {[%clk 0:00:04.1]} 34... e4 {[%clk
0:01:05.3]} 35. Ra1 {[%clk 0:00:04]} 35... Kc6 {[%clk 0:01:02.7]} 36. Rgc1
{[%clk 0:00:03]} 36... d5 {[%clk 0:01:01.2]} 37. a5 {[%clk 0:00:03.5]} 37... Nc8
{[%clk 0:00:58.3]} 38. c5 {[%clk 0:00:03.9]} 38... Be2 {[%clk 0:00:57.9]} 39. b4
{[%clk 0:00:04.1]} 39... Na7 {[%clk 0:00:54.2]} 40. Rc2 {[%clk 0:00:04.3]} 40...
Bd3 {[%clk 0:00:48.7]} 41. Rb2 {[%clk 0:00:03.5]} 41... Kb5 {[%clk 0:00:42.3]}
42. Kd2 {[%clk 0:00:03.7]} 42... Nc6 {[%clk 0:00:40.6]} 43. a6 {[%clk
0:00:03.5]} 43... Rxa6 {[%clk 0:00:38.5]} 44. Rxa6 {[%clk 0:00:04.4]} 44... Kxa6
{[%clk 0:00:39.1]} 45. Kc3 {[%clk 0:00:05.3]} 45... Kb5 {[%clk 0:00:38.1]} 46.
Ra2 {[%clk 0:00:05.2]} 46... Bc4 {[%clk 0:00:36.4]} 47. Ra8 {[%clk 0:00:04.4]}
47... g5 {[%clk 0:00:31.1]} 48. hxg5 {[%clk 0:00:02.3]} 48... hxg5 {[%clk
0:00:32]} 49. Rg8 {[%clk 0:00:02.5]} 49... f4 {[%clk 0:00:25.3]} 50. Rxg5 {[%clk
0:00:02.7]} 50... f3 {[%clk 0:00:23.1]} 51. Rf5 {[%clk 0:00:02.7]} 51... Nxb4
{[%clk 0:00:21.8]} 52. Rf8 {[%clk 0:00:03.6]} 52... Nd3 {[%clk 0:00:22]} 53.
Rb8+ {[%clk 0:00:03.5]} 53... Kc6 {[%clk 0:00:22.2]} 54. Rc8+ {[%clk 0:00:03]}
54... Kd7 {[%clk 0:00:22.1]} 55. Rb8 {[%clk 0:00:01.8]} 55... Nxf2 {[%clk
0:00:22.1]} 56. Rb6 {[%clk 0:00:02.7]} 56... Ng4 {[%clk 0:00:21.6]} 57. Rd6+
{[%clk 0:00:02.1]} 57... Kc7 {[%clk 0:00:18.6]} 58. Kd2 {[%clk 0:00:03]} 58...
f2 {[%clk 0:00:17.6]} 59. Rg6 {[%clk 0:00:01.3]} 59... f1=Q {[%clk 0:00:17.7]}
60. Rxg4 {[%clk 0:00:01.6]} 60... Qe2+ {[%clk 0:00:17.9]} 0-1

[Event "*** Titled Tuesday Blitz"]
[Site "Chess.com"]
[Date "2020.11.24"]
[Round "10"]
[White "Escanor89"]
[Black "Fy_Rakotomaharo"]
[Result "0-1"]
[WhiteElo "2515"]
[BlackElo "2692"]
[TimeControl "180+1"]
[EndTime "12:14:57 PST"]
[Termination "Fy_Rakotomaharo won on time"]

1. Nf3 {[%clk 0:03:00.9]} 1... d6 {[%clk 0:03:00.9]} 2. c4 {[%clk 0:03:00]} 2...
g6 {[%clk 0:03:01.6]} 3. Nc3 {[%clk 0:02:59.8]} 3... Bg7 {[%clk 0:03:02.4]} 4.
g3 {[%clk 0:02:59.5]} 4... f5 {[%clk 0:03:02.4]} 5. Bg2 {[%clk 0:02:58.6]} 5...
Nf6 {[%clk 0:03:02.7]} 6. O-O {[%clk 0:02:59]} 6... O-O {[%clk 0:03:03.6]} 7. d4
{[%clk 0:02:58.8]} 7... c6 {[%clk 0:03:04]} 8. b3 {[%clk 0:02:57.4]} 8... Ne4
{[%clk 0:03:01.2]} 9. Bb2 {[%clk 0:02:56.8]} 9... Nxc3 {[%clk 0:02:52.1]} 10.
Bxc3 {[%clk 0:02:56.4]} 10... Nd7 {[%clk 0:02:53]} 11. Qc2 {[%clk 0:02:51.1]}
11... Nf6 {[%clk 0:02:52.7]} 12. Rad1 {[%clk 0:02:47.9]} 12... Bd7 {[%clk
0:02:47.7]} 13. Bb2 {[%clk 0:02:46.9]} 13... Qa5 {[%clk 0:02:46.8]} 14. Bc3
{[%clk 0:02:36.8]} 14... Qa6 {[%clk 0:02:46.4]} 15. Nd2 {[%clk 0:02:33.8]} 15...
d5 {[%clk 0:02:42.7]} 16. Rfe1 {[%clk 0:02:31.8]} 16... Ne4 {[%clk 0:02:42.4]}
17. e3 {[%clk 0:02:16]} 17... Nxc3 {[%clk 0:02:38.7]} 18. Qxc3 {[%clk
0:02:15.8]} 18... e6 {[%clk 0:02:39]} 19. Bf1 {[%clk 0:02:10.2]} 19... Qb6
{[%clk 0:02:39.2]} 20. Nf3 {[%clk 0:02:09.2]} 20... a5 {[%clk 0:02:35.3]} 21.
Ne5 {[%clk 0:02:07.6]} 21... Be8 {[%clk 0:02:35.4]} 22. Nd3 {[%clk 0:02:00.1]}
22... g5 {[%clk 0:02:32.5]} 23. f4 {[%clk 0:01:54.3]} 23... Bh5 {[%clk
0:02:27.9]} 24. Rc1 {[%clk 0:01:49.8]} 24... h6 {[%clk 0:02:28.5]} 25. Ne5
{[%clk 0:01:48.4]} 25... Qb4 {[%clk 0:02:20.8]} 26. c5 {[%clk 0:01:28.1]} 26...
Bxe5 {[%clk 0:02:13.8]} 27. dxe5 {[%clk 0:01:21.7]} 27... Qxc3 {[%clk
0:02:05.1]} 28. Rxc3 {[%clk 0:01:21.2]} 28... Rfd8 {[%clk 0:02:06]} 29. Rd3
{[%clk 0:01:16.5]} 29... a4 {[%clk 0:02:03.7]} 30. b4 {[%clk 0:01:15]} 30... a3
{[%clk 0:02:04.3]} 31. Rd4 {[%clk 0:01:14.7]} 31... b6 {[%clk 0:01:58.8]} 32.
cxb6 {[%clk 0:00:55]} 32... Rdb8 {[%clk 0:01:58.8]} 33. Rc1 {[%clk 0:00:54.7]}
33... Rxb6 {[%clk 0:01:58.5]} 34. Rc3 {[%clk 0:00:52.7]} 34... Ra4 {[%clk
0:01:48.9]} 35. b5 {[%clk 0:00:39.2]} 35... cxb5 {[%clk 0:01:32.7]} 36. Rxa4
{[%clk 0:00:27.7]} 36... bxa4 {[%clk 0:01:33.6]} 37. Rxa3 {[%clk 0:00:27.6]}
37... Bd1 {[%clk 0:01:34.2]} 38. Rc3 {[%clk 0:00:24.1]} 38... Rb2 {[%clk
0:01:34.1]} 39. a3 {[%clk 0:00:18.9]} 39... Rb3 {[%clk 0:01:34.6]} 40. Rc1
{[%clk 0:00:16.4]} 40... Bh5 {[%clk 0:01:24.7]} 41. Rc6 {[%clk 0:00:11.8]} 41...
Kf7 {[%clk 0:00:51.3]} 42. Rc7+ {[%clk 0:00:09.6]} 42... Ke8 {[%clk 0:00:51.7]}
43. Ra7 {[%clk 0:00:09.3]} 43... Rb1 {[%clk 0:00:46.9]} 44. Kf2 {[%clk
0:00:06.6]} 44... Bd1 {[%clk 0:00:47.2]} 45. Ra5 {[%clk 0:00:04.3]} 45... g4
{[%clk 0:00:31.8]} 46. Bb5+ {[%clk 0:00:04]} 46... Ke7 {[%clk 0:00:31.9]} 47.
Bxa4 {[%clk 0:00:04.2]} 47... Rb2+ {[%clk 0:00:31.9]} 48. Kg1 {[%clk 0:00:04]}
48... Bf3 {[%clk 0:00:31.4]} 49. Ra7+ {[%clk 0:00:04]} 49... Kd8 {[%clk
0:00:31]} 50. Bc6 {[%clk 0:00:02.6]} 50... Rg2+ {[%clk 0:00:30.5]} 51. Kf1
{[%clk 0:00:02.9]} 51... Rxh2 {[%clk 0:00:31]} 52. Rd7+ {[%clk 0:00:02.9]} 52...
Kc8 {[%clk 0:00:31]} 53. Rd6 {[%clk 0:00:03.3]} 53... Rh1+ {[%clk 0:00:20.4]}
54. Kf2 {[%clk 0:00:03]} 54... Rh2+ {[%clk 0:00:21.1]} 55. Kf1 {[%clk 0:00:03]}
55... Rg2 {[%clk 0:00:22]} 56. Bd7+ {[%clk 0:00:02.5]} 56... Kc7 {[%clk
0:00:21]} 57. Bxe6 {[%clk 0:00:02.9]} 57... Rxg3 {[%clk 0:00:21.4]} 58. Bxf5
{[%clk 0:00:02.6]} 58... h5 {[%clk 0:00:21.2]} 59. Rd7+ {[%clk 0:00:02.2]} 59...
Kc6 {[%clk 0:00:21.8]} 60. e6 {[%clk 0:00:02.1]} 60... Rh3 {[%clk 0:00:18.9]}
61. e7 {[%clk 0:00:02.4]} 61... Rh1+ {[%clk 0:00:19.5]} 62. Kf2 {[%clk
0:00:02.5]} 62... Rh2+ {[%clk 0:00:20]} 63. Kf1 {[%clk 0:00:02]} 63... g3 {[%clk
0:00:20.2]} 0-1

[Event "*** Titled Tuesday Blitz"]
[Site "Chess.com"]
[Date "2020.11.24"]
[Round "10"]
[White "Infernal_XaM"]
[Black "vugarrasulov"]
[Result "0-1"]
[WhiteElo "2856"]
[BlackElo "2901"]
[TimeControl "180+1"]
[EndTime "12:14:58 PST"]
[Termination "vugarrasulov won by resignation"]

1. d4 {[%clk 0:03:00.9]} 1... Nf6 {[%clk 0:02:59.2]} 2. c4 {[%clk 0:03:01.8]}
2... e6 {[%clk 0:02:56.9]} 3. Nc3 {[%clk 0:03:02.2]} 3... Bb4 {[%clk 0:02:56.5]}
4. Qb3 {[%clk 0:03:01.4]} 4... a5 {[%clk 0:02:50.2]} 5. a3 {[%clk 0:03:01.6]}
5... Bxc3+ {[%clk 0:02:44.5]} 6. Qxc3 {[%clk 0:03:01.3]} 6... a4 {[%clk
0:02:44.8]} 7. Nf3 {[%clk 0:02:56.5]} 7... b6 {[%clk 0:02:40.8]} 8. d5 {[%clk
0:02:52.1]} 8... O-O {[%clk 0:02:38]} 9. Bg5 {[%clk 0:02:51.4]} 9... Na6 {[%clk
0:02:32.9]} 10. Qc2 {[%clk 0:02:23.2]} 10... h6 {[%clk 0:02:28.9]} 11. Bh4
{[%clk 0:02:19.1]} 11... Nc5 {[%clk 0:02:27.3]} 12. Rd1 {[%clk 0:02:18.4]} 12...
exd5 {[%clk 0:02:12.3]} 13. cxd5 {[%clk 0:02:18.3]} 13... Ba6 {[%clk 0:02:07.3]}
14. e3 {[%clk 0:02:16.5]} 14... Bxf1 {[%clk 0:02:06.8]} 15. Kxf1 {[%clk
0:02:16.4]} 15... Re8 {[%clk 0:02:01.5]} 16. Rd4 {[%clk 0:02:15.4]} 16... Ra5
{[%clk 0:01:38.4]} 17. Rf4 {[%clk 0:02:12.6]} 17... g5 {[%clk 0:01:13.2]} 18.
Nxg5 {[%clk 0:02:12.6]} 18... hxg5 {[%clk 0:01:12.1]} 19. Bxg5 {[%clk
0:02:12.6]} 19... Nce4 {[%clk 0:01:10.3]} 20. Rxe4 {[%clk 0:02:10.5]} 20... Rxe4
{[%clk 0:01:10.8]} 21. Bxf6 {[%clk 0:01:49]} 21... Qxf6 {[%clk 0:00:49.1]} 22.
Qxe4 {[%clk 0:01:48.5]} 22... Rc5 {[%clk 0:00:41]} 23. g4 {[%clk 0:01:09.4]}
23... Rc1+ {[%clk 0:00:38.1]} 24. Kg2 {[%clk 0:01:09.6]} 24... Rxh1 {[%clk
0:00:38.1]} 25. Kxh1 {[%clk 0:01:10.2]} 25... Qxf2 {[%clk 0:00:38.6]} 26. Qe8+
{[%clk 0:01:06.9]} 26... Kh7 {[%clk 0:00:36]} 27. Qe4+ {[%clk 0:01:03.9]} 27...
Kg8 {[%clk 0:00:35.7]} 28. h4 {[%clk 0:00:53.4]} 28... Qxh4+ {[%clk 0:00:27.8]}
29. Kg2 {[%clk 0:00:53.4]} 29... Qf6 {[%clk 0:00:28.7]} 30. Qxa4 {[%clk
0:00:47.1]} 30... Qxb2+ {[%clk 0:00:28]} 31. Kf3 {[%clk 0:00:43.9]} 31... Qf6+
{[%clk 0:00:26.7]} 32. Ke4 {[%clk 0:00:43.3]} 32... c6 {[%clk 0:00:22.2]} 33.
Kd3 {[%clk 0:00:27.9]} 33... Qf1+ {[%clk 0:00:18.7]} 34. Kd4 {[%clk 0:00:22.8]}
34... Qa1+ {[%clk 0:00:16]} 35. Kd3 {[%clk 0:00:19.9]} 35... Qf1+ {[%clk
0:00:14.2]} 36. Kd4 {[%clk 0:00:19.9]} 36... Qa1+ {[%clk 0:00:14.1]} 37. Kd3
{[%clk 0:00:20.3]} 37... Qb1+ {[%clk 0:00:14]} 38. Kd4 {[%clk 0:00:19.9]} 38...
Qb2+ {[%clk 0:00:12.5]} 39. Kd3 {[%clk 0:00:19]} 39... cxd5 {[%clk 0:00:09.8]}
40. g5 {[%clk 0:00:09.2]} 40... Qe5 {[%clk 0:00:08.4]} 41. Qg4 {[%clk
0:00:06.9]} 41... Kg7 {[%clk 0:00:07.5]} 42. Qxd7 {[%clk 0:00:06.7]} 42... Qxg5
{[%clk 0:00:07.8]} 43. a4 {[%clk 0:00:04.8]} 43... Qg6+ {[%clk 0:00:07.3]} 44.
Kc3 {[%clk 0:00:05]} 44... Qe4 {[%clk 0:00:07.8]} 45. Kd2 {[%clk 0:00:04.5]}
45... Kg6 {[%clk 0:00:06.2]} 46. Qc6+ {[%clk 0:00:04.4]} 46... Qe6 {[%clk
0:00:06.8]} 47. Qc2+ {[%clk 0:00:04.7]} 47... Kg7 {[%clk 0:00:06.9]} 48. Qb2+
{[%clk 0:00:04.8]} 48... Qf6 {[%clk 0:00:07]} 49. Qb5 {[%clk 0:00:05.1]} 49...
Qf2+ {[%clk 0:00:06.7]} 50. Kc3 {[%clk 0:00:05]} 50... Qxe3+ {[%clk 0:00:06.7]}
51. Kc2 {[%clk 0:00:04.9]} 51... Qe4+ {[%clk 0:00:06.8]} 52. Kc3 {[%clk
0:00:04.9]} 52... Qc4+ {[%clk 0:00:04.4]} 53. Qxc4 {[%clk 0:00:04.9]} 53... dxc4
{[%clk 0:00:05.3]} 54. Kxc4 {[%clk 0:00:05.8]} 54... f5 {[%clk 0:00:06]} 55. Kb5
{[%clk 0:00:05.6]} 55... f4 {[%clk 0:00:06.4]} 56. Kxb6 {[%clk 0:00:06.5]} 56...
f3 {[%clk 0:00:07]} 57. a5 {[%clk 0:00:07.4]} 57... f2 {[%clk 0:00:07.7]} 58. a6
{[%clk 0:00:07.5]} 58... f1=Q {[%clk 0:00:08.1]} 59. a7 {[%clk 0:00:06.9]} 59...
Qf3 {[%clk 0:00:08.5]} 60. Kc7 {[%clk 0:00:07]} 60... Qa8 {[%clk 0:00:09.4]} 0-1

[Event "*** Titled Tuesday Blitz"]
[Site "Chess.com"]
[Date "2020.11.24"]
[Round "10"]
[White "KononenkoD"]
[Black "elcandado"]
[Result "0-1"]
[WhiteElo "2482"]
[BlackElo "2655"]
[TimeControl "180+1"]
[EndTime "12:15:00 PST"]
[Termination "elcandado won on time"]

1. d4 {[%clk 0:03:00.9]} 1... Nf6 {[%clk 0:02:59.1]} 2. c4 {[%clk 0:03:01.1]}
2... e6 {[%clk 0:02:59.2]} 3. g3 {[%clk 0:03:01.4]} 3... d5 {[%clk 0:02:59]} 4.
Nf3 {[%clk 0:03:01.4]} 4... Be7 {[%clk 0:02:59]} 5. Bg2 {[%clk 0:03:00.9]} 5...
O-O {[%clk 0:02:59.3]} 6. O-O {[%clk 0:03:01.2]} 6... dxc4 {[%clk 0:02:59.7]} 7.
Qc2 {[%clk 0:03:00.6]} 7... a6 {[%clk 0:03:00]} 8. a4 {[%clk 0:02:59.5]} 8...
Bd7 {[%clk 0:02:59.6]} 9. Qxc4 {[%clk 0:02:59.9]} 9... Bc6 {[%clk 0:02:59.9]}
10. Bf4 {[%clk 0:03:00.3]} 10... Bd6 {[%clk 0:02:52.7]} 11. Qc1 {[%clk
0:03:00.1]} 11... a5 {[%clk 0:02:50.3]} 12. Nc3 {[%clk 0:02:57.1]} 12... Na6
{[%clk 0:02:49.4]} 13. Re1 {[%clk 0:02:56.3]} 13... Bxf3 {[%clk 0:02:47.4]} 14.
Bxf3 {[%clk 0:02:55.2]} 14... Bxf4 {[%clk 0:02:46.9]} 15. Qxf4 {[%clk
0:02:54.4]} 15... c6 {[%clk 0:02:47]} 16. Rad1 {[%clk 0:02:51.7]} 16... Nb4
{[%clk 0:02:46.5]} 17. Qc1 {[%clk 0:02:46.2]} 17... Qe7 {[%clk 0:02:41.9]} 18.
e4 {[%clk 0:02:27.8]} 18... Rfd8 {[%clk 0:02:39.8]} 19. d5 {[%clk 0:02:19.6]}
19... e5 {[%clk 0:02:38.7]} 20. dxc6 {[%clk 0:02:08.8]} 20... bxc6 {[%clk
0:02:38.3]} 21. Be2 {[%clk 0:02:03.6]} 21... Qc5 {[%clk 0:02:33.7]} 22. Kg2
{[%clk 0:01:43.3]} 22... h6 {[%clk 0:02:33.1]} 23. h3 {[%clk 0:01:38.5]} 23...
Rd4 {[%clk 0:02:30.8]} 24. Qe3 {[%clk 0:01:19.5]} 24... Rad8 {[%clk 0:02:28.2]}
25. Rc1 {[%clk 0:01:18.9]} 25... Qd6 {[%clk 0:02:16.5]} 26. Red1 {[%clk
0:01:13.4]} 26... Nd7 {[%clk 0:02:13.7]} 27. f4 {[%clk 0:00:55.2]} 27... Nc5
{[%clk 0:02:07.6]} 28. fxe5 {[%clk 0:00:53.2]} 28... Qxe5 {[%clk 0:02:08.5]} 29.
Rxd4 {[%clk 0:00:52.9]} 29... Rxd4 {[%clk 0:02:06.6]} 30. Rd1 {[%clk 0:00:49.7]}
30... Ne6 {[%clk 0:01:56]} 31. Rxd4 {[%clk 0:00:46.5]} 31... Nxd4 {[%clk
0:01:55.7]} 32. Bc4 {[%clk 0:00:44.5]} 32... Qc5 {[%clk 0:01:33.1]} 33. b3
{[%clk 0:00:41.5]} 33... Nxb3 {[%clk 0:01:23.8]} 34. Qxc5 {[%clk 0:00:28.1]}
34... Nxc5 {[%clk 0:01:23.2]} 35. Kf3 {[%clk 0:00:25.7]} 35... Kf8 {[%clk
0:01:20.4]} 36. e5 {[%clk 0:00:25.9]} 36... Ke7 {[%clk 0:01:18.5]} 37. Ke3
{[%clk 0:00:26.1]} 37... Nc2+ {[%clk 0:01:17.3]} 38. Kf4 {[%clk 0:00:23.5]}
38... g5+ {[%clk 0:01:10.5]} 39. Kg4 {[%clk 0:00:19.4]} 39... Ne3+ {[%clk
0:01:09.7]} 40. Kh5 {[%clk 0:00:19.6]} 40... Nxc4 {[%clk 0:01:10.6]} 41. Kxh6
{[%clk 0:00:20.5]} 41... f6 {[%clk 0:01:10.3]} 42. exf6+ {[%clk 0:00:17.3]}
42... Kxf6 {[%clk 0:01:10.3]} 43. h4 {[%clk 0:00:18.2]} 43... gxh4 {[%clk
0:01:10.1]} 44. gxh4 {[%clk 0:00:19.1]} 44... Ne5 {[%clk 0:01:07.5]} 45. h5
{[%clk 0:00:18.2]} 45... Nf7+ {[%clk 0:01:01.9]} 46. Kh7 {[%clk 0:00:18.1]}
46... Kg5 {[%clk 0:01:01]} 47. Ne2 {[%clk 0:00:15.1]} 47... Kxh5 {[%clk
0:00:58.6]} 48. Nd4 {[%clk 0:00:15.1]} 48... Ne5 {[%clk 0:00:58.4]} 49. Kg7
{[%clk 0:00:14.4]} 49... Nxa4 {[%clk 0:00:58.3]} 50. Kf6 {[%clk 0:00:14.4]}
50... c5 {[%clk 0:00:53.8]} 51. Nb3 {[%clk 0:00:14.3]} 51... Nc6 {[%clk
0:00:44.5]} 52. Kf5 {[%clk 0:00:13.6]} 52... c4 {[%clk 0:00:44.2]} 53. Nc1
{[%clk 0:00:13.5]} 53... Nb4 {[%clk 0:00:43]} 54. Ke4 {[%clk 0:00:13.3]} 54...
c3 {[%clk 0:00:37.9]} 55. Kd4 {[%clk 0:00:12.1]} 55... Kg4 {[%clk 0:00:33.8]}
56. Kc4 {[%clk 0:00:10.9]} 56... Kf3 {[%clk 0:00:32.7]} 57. Kb3 {[%clk
0:00:11.1]} 57... Ke3 {[%clk 0:00:32.8]} 58. Kxa4 {[%clk 0:00:11.2]} 58... Kd2
{[%clk 0:00:32.2]} 59. Nb3+ {[%clk 0:00:10.5]} 59... Kc2 {[%clk 0:00:32.1]} 60.
Nxa5 {[%clk 0:00:10.3]} 60... Nd5 {[%clk 0:00:29.1]} 61. Nc4 {[%clk 0:00:09.3]}
61... Kd3 {[%clk 0:00:27.5]} 62. Kb5 {[%clk 0:00:09.1]} 62... Nc7+ {[%clk
0:00:26.3]} 63. Kb4 {[%clk 0:00:08.4]} 63... c2 {[%clk 0:00:24.3]} 64. Nb2+
{[%clk 0:00:04.3]} 64... Ke2 {[%clk 0:00:22.4]} 0-1

[Event "*** Titled Tuesday Blitz"]
[Site "Chess.com"]
[Date "2020.11.24"]
[Round "10"]
[White "ArjunErigaisi2003"]
[Black "azikom"]
[Result "1/2-1/2"]
[WhiteElo "2905"]
[BlackElo "2618"]
[TimeControl "180+1"]
[EndTime "12:15:03 PST"]
[Termination "Game drawn by repetition"]

1. b3 {[%clk 0:03:00.8]} 1... d5 {[%clk 0:02:49.4]} 2. Bb2 {[%clk 0:03:01.1]}
2... Nf6 {[%clk 0:02:49.2]} 3. Nf3 {[%clk 0:02:58.6]} 3... Nbd7 {[%clk
0:02:46.2]} 4. c4 {[%clk 0:02:53.8]} 4... e6 {[%clk 0:02:44.6]} 5. g3 {[%clk
0:02:46.7]} 5... Be7 {[%clk 0:02:44.3]} 6. Bg2 {[%clk 0:02:47.1]} 6... O-O
{[%clk 0:02:45]} 7. O-O {[%clk 0:02:47.5]} 7... b6 {[%clk 0:02:45.3]} 8. cxd5
{[%clk 0:02:43.1]} 8... Nxd5 {[%clk 0:02:44.9]} 9. Nc3 {[%clk 0:02:36.2]} 9...
Bb7 {[%clk 0:02:44.4]} 10. Qc2 {[%clk 0:02:30.8]} 10... c5 {[%clk 0:02:42]} 11.
Rac1 {[%clk 0:02:27.3]} 11... Rc8 {[%clk 0:02:41.5]} 12. Rfd1 {[%clk 0:02:27.6]}
12... N7f6 {[%clk 0:02:30.6]} 13. Qb1 {[%clk 0:02:16.7]} 13... Nxc3 {[%clk
0:02:25.7]} 14. Rxc3 {[%clk 0:02:02]} 14... Nd5 {[%clk 0:02:14.7]} 15. Rcc1
{[%clk 0:01:59.4]} 15... Bf6 {[%clk 0:02:13.1]} 16. d4 {[%clk 0:01:56]} 16...
cxd4 {[%clk 0:02:12]} 17. Bxd4 {[%clk 0:01:38.9]} 17... Rxc1 {[%clk 0:02:08.8]}
18. Rxc1 {[%clk 0:01:21.1]} 18... h6 {[%clk 0:01:53.3]} 19. e3 {[%clk 0:01:09]}
19... Re8 {[%clk 0:01:43.7]} 20. Qb2 {[%clk 0:01:07.2]} 20... Bxd4 {[%clk
0:01:36.9]} 21. Nxd4 {[%clk 0:01:08.1]} 21... Qd7 {[%clk 0:01:30.5]} 22. a3
{[%clk 0:01:04]} 22... Rc8 {[%clk 0:01:22.6]} 23. h4 {[%clk 0:01:00.6]} 23...
Ne7 {[%clk 0:01:12.6]} 24. Rxc8+ {[%clk 0:00:50.9]} 24... Qxc8 {[%clk
0:01:11.2]} 25. Bxb7 {[%clk 0:00:47.7]} 25... Qxb7 {[%clk 0:01:11.1]} 26. Qc2
{[%clk 0:00:47.9]} 26... g6 {[%clk 0:00:58]} 27. b4 {[%clk 0:00:41.1]} 27... a6
{[%clk 0:00:42.7]} 28. a4 {[%clk 0:00:39.5]} 28... e5 {[%clk 0:00:23.3]} 29. Ne2
{[%clk 0:00:30.7]} 29... Qf3 {[%clk 0:00:19.6]} 30. Nc3 {[%clk 0:00:30]} 30...
Nd5 {[%clk 0:00:13.6]} 31. Nxd5 {[%clk 0:00:28.2]} 31... Qxd5 {[%clk 0:00:13.1]}
32. Qc8+ {[%clk 0:00:29.1]} 32... Kg7 {[%clk 0:00:12.9]} 33. Qxa6 {[%clk
0:00:30]} 33... Qd1+ {[%clk 0:00:12.9]} 34. Kg2 {[%clk 0:00:29.5]} 34... Qd5+
{[%clk 0:00:12.6]} 35. Kh2 {[%clk 0:00:22.5]} 35... Qd2 {[%clk 0:00:11.9]} 36.
Kg2 {[%clk 0:00:12.3]} 36... Qxb4 {[%clk 0:00:11.7]} 37. Qa8 {[%clk 0:00:12.3]}
37... Qb3 {[%clk 0:00:10.6]} 38. Qc6 {[%clk 0:00:10.3]} 38... Qb4 {[%clk
0:00:10.2]} 39. Kg1 {[%clk 0:00:08.4]} 39... Qb2 {[%clk 0:00:10.2]} 40. Qd6
{[%clk 0:00:06.9]} 40... Qb1+ {[%clk 0:00:09.9]} 41. Kh2 {[%clk 0:00:07.3]}
41... Qe4 {[%clk 0:00:10.3]} 42. Qc7 {[%clk 0:00:03.7]} 42... Qf5 {[%clk
0:00:09.6]} 43. Kg1 {[%clk 0:00:03.3]} 43... Qf6 {[%clk 0:00:09.6]} 44. Qc4
{[%clk 0:00:02.7]} 44... Qd6 {[%clk 0:00:09.5]} 45. Qb5 {[%clk 0:00:03.6]} 45...
Qe6 {[%clk 0:00:09.5]} 46. Kg2 {[%clk 0:00:04.1]} 46... Qf6 {[%clk 0:00:09.6]}
47. Kf1 {[%clk 0:00:04]} 47... Qd6 {[%clk 0:00:09.8]} 48. Ke2 {[%clk 0:00:04.2]}
48... Qf6 {[%clk 0:00:10.3]} 49. e4 {[%clk 0:00:04.4]} 49... Qe6 {[%clk
0:00:10.3]} 50. f3 {[%clk 0:00:03.5]} 50... Qf6 {[%clk 0:00:10.2]} 51. Ke3
{[%clk 0:00:03.3]} 51... Qd6 {[%clk 0:00:10.1]} 52. Ke2 {[%clk 0:00:03.2]} 52...
Qd4 {[%clk 0:00:10.1]} 53. Qb3 {[%clk 0:00:02.8]} 53... Qc5 {[%clk 0:00:09.8]}
54. Qb5 {[%clk 0:00:02.7]} 54... Qd4 {[%clk 0:00:10]} 55. Qb3 {[%clk 0:00:02.4]}
55... Qc5 {[%clk 0:00:10.2]} 56. Qb5 {[%clk 0:00:02.9]} 56... Qd4 {[%clk
0:00:10.4]} 1/2-1/2